bitfinex/quotes_SOLUSD_20251117
["timestamp","ask_amount","ask_price","bid_price","bid_amount"]
[1763383129628,9.78882769,142.1,142.09,7.15173509]
[1763383131364,9.04,142.1,142.08,7.15173509]
[1763383131543,9.78882769,142.08,142.06,7.15173509]
[1763383131743,18.14882769,142.08,142.06,7.15173509]
[1763383132138,18.14882769,142.08,142.07,7.15173509]
[1763383133130,18.14882769,142.08,142.04,0.66]
[1763383133334,18.14882769,142.08,142.07,7.15173509]
[1763383134534,18.14882769,142.08,142.04,0.66]
[1763383134838,18.14882769,142.08,142.07,11.06558274]
[1763383135550,19.02861372,142.08,142.07,11.06558274]
[1763383136949,19.70861372,142.08,142.07,11.06558274]
[1763383137750,19.02861372,142.08,142.07,11.06558274]
[1763383138154,19.70861372,142.08,142.03,18.12096]
[1763383138335,9.78882769,142.06,142.04,11.06558274]
[1763383138550,18.14882769,142.05,142.04,11.06558274]
[1763383139845,8.36,142.05,142.04,11.06558274]
[1763383140044,8.36,142.05,142.04,11.72558274]
[1763383140241,8.36,142.07,142.04,11.72558274]
[1763383140440,115.26882769,142.09,142.03,7.04070081]
[1763383140441,104.8,142.09,142.06,11.06558274]
[1763383140648,8.36,142.1,142.08,11.06558274]
[1763383140852,8.36,142.1,142.09,11.06558274]
[1763383140853,18.14882769,142.1,142.09,11.06558274]
[1763383141067,8.36,142.1,142.09,11.06558274]
[1763383141265,9.98882769,142.14,142.09,18.76335049]
[1763383141563,11.54824235,142.14,142.13,11.06558274]
[1763383141764,19.90824235,142.14,142.13,11.06558274]
[1763383142067,19.90824235,142.14,142.12,11.06558274]
[1763383145664,19.90824235,142.14,142.13,11.06558274]
[1763383145665,18.34882769,142.14,142.13,11.06558274]
[1763383146566,18.34882769,142.14,142.11,0.66]
[1763383146767,18.34882769,142.14,142.13,11.06558274]
[1763383147082,9.78882769,142.13,142.12,11.06558274]
[1763383147285,10.66830422,142.13,142.12,11.06558274]
[1763383148179,9.78882769,142.13,142.12,11.06558274]
[1763383148395,113.36,142.14,142.12,11.77558274]
[1763383148554,113.36,142.14,142.1,11.06558274]
[1763383148555,105.0,142.14,142.13,11.77558274]
[1763383149058,0.2,142.14,142.13,11.77558274]
[1763383149659,0.2,142.14,142.13,27.17139502]
[1763383154281,18.86882769,142.2,142.18,11.06558274]
[1763383154282,8.36,142.2,142.18,11.06558274]
[1763383154588,0.2,142.21,142.19,11.06558274]
[1763383154968,0.2,142.21,142.2,11.77558274]
[1763383155590,0.2,142.21,142.2,31.20116548]
[1763383155982,0.2,142.21,142.2,0.71]
[1763383156192,0.2,142.21,142.2,11.77558274]
[1763383157273,0.2,142.21,142.2,11.06558274]
[1763383157866,0.2,142.21,142.2,31.19116548]
[1763383158066,0.2,142.21,142.2,38.22351428]
[1763383162864,0.2,142.22,142.2,20.25196133]
[1763383163070,0.2,142.22,142.21,0.7]
[1763383163270,0.2,142.22,142.21,4.85961253]
[1763383164292,0.2,142.22,142.21,13.21961253]
[1763383169297,0.2,142.22,142.17,32.22918362]
[1763383169603,0.91,142.22,142.21,4.15961253]
[1763383169785,0.2,142.22,142.21,4.15961253]
[1763383170507,0.2,142.22,142.21,18.12096]
[1763383170683,8.36,142.27,142.21,35.50018506]
[1763383170883,8.36,142.27,142.26,4.15961253]
[1763383171513,9.07,142.27,142.26,4.15961253]
[1763383172010,8.36,142.27,142.26,4.15961253]
[1763383172192,0.71,142.28,142.26,4.15961253]
[1763383172393,0.71,142.28,142.27,4.15961253]
[1763383176293,10.86731528,142.29,142.27,4.15961253]
[1763383176494,0.2,142.47,142.3,18.12096]
[1763383176495,9.98882769,142.33,142.3,18.12096]
[1763383176714,0.2,142.33,142.32,4.15961253]
[1763383177093,8.34,142.36,142.32,4.86961253]
[1763383177301,0.2,142.37,142.35,22.28057253]
[1763383177515,0.2,142.37,142.36,4.15961253]
[1763383178610,0.91,142.37,142.36,4.15961253]
[1763383182703,0.91,142.37,142.35,4.15961253]
[1763383182704,10.69882769,142.37,142.35,4.15961253]
[1763383182904,1.58805563,142.36,142.35,4.15961253]
[1763383183419,9.78882769,142.35,142.34,4.15961253]
[1763383183590,18.83882769,142.35,142.34,4.15961253]
[1763383189719,8.34,142.35,142.34,4.15961253]
[1763383189918,0.2,142.37,142.34,4.86961253]
[1763383190097,0.2,142.37,142.36,4.15961253]
[1763383192830,0.2,142.37,142.36,4.86961253]
[1763383193130,1.07774734,142.41,142.36,16.05367012]
[1763383193131,0.2,142.41,142.36,16.05367012]
[1763383193336,0.2,142.41,142.4,4.15961253]
[1763383194225,0.2,142.41,142.4,4.86961253]
[1763383194436,10.49882769,142.45,142.44,4.15961253]
[1763383194619,18.83882769,142.45,142.44,4.15961253]
[1763383194812,18.83882769,142.45,142.4,0.71]
[1763383194813,9.78882769,142.44,142.4,0.71]
[1763383195013,11.37639017,142.44,142.43,4.15961253]
[1763383195999,11.37639017,142.44,142.38,30.62057253]
[1763383196000,11.37639017,142.44,142.38,8.34]
[1763383196205,9.78882769,142.42,142.4,4.15961253]
[1763383196440,8.34,142.41,142.38,8.34]
[1763383196647,9.05,142.41,142.37,0.71]
[1763383197331,10.49882769,142.4,142.36,18.12096]
[1763383197509,8.34,142.4,142.38,2.65677026]
[1763383197837,0.70422156,142.39,142.37,2.65677026]
[1763383199809,10.49304925,142.39,142.38,2.65677026]
[1763383200434,9.78882769,142.38,142.28,7.73823756]
[1763383200605,9.04422156,142.37,142.35,2.65677026]
[1763383200809,18.12882769,142.37,142.36,2.65677026]
[1763383201506,9.78882769,142.38,142.36,2.65677026]
[1763383201710,18.12882769,142.38,142.37,2.65677026]
[1763383202219,18.83882769,142.38,142.35,2.65677026]
[1763383202418,0.70422156,142.37,142.35,2.65677026]
[1763383202637,0.70422156,142.37,142.36,2.65677026]
[1763383202934,18.12882769,142.38,142.36,2.65677026]
[1763383203427,18.12882769,142.38,142.37,2.65677026]
[1763383204012,18.12882769,142.38,142.36,2.65677026]
[1763383204327,18.12882769,142.38,142.37,2.65677026]
[1763383205315,8.34,142.38,142.37,2.65677026]
[1763383205521,9.78882769,142.39,142.37,2.65677026]
[1763383205727,9.78882769,142.39,142.38,2.65677026]
[1763383206031,9.78882769,142.39,142.37,2.65677026]
[1763383206418,104.6,142.42,142.35,18.12096]
[1763383206419,9.78882769,142.42,142.38,6.00354052]
[1763383206618,9.78882769,142.42,142.41,2.65677026]
[1763383207930,9.78882769,142.43,142.41,2.65677026]
[1763383208116,10.49304925,142.43,142.42,2.65677026]
[1763383209122,10.49304925,142.43,142.38,11.31708104]
[1763383209314,10.49304925,142.43,142.39,0.69]
[1763383209515,0.70422156,142.44,142.42,2.65677026]
[1763383209717,0.9,142.47,142.43,3.34677026]
[1763383209718,9.78882769,142.45,142.43,3.34677026]
[1763383209929,9.78882769,142.45,142.44,2.65677026]
[1763383211319,0.90422156,142.47,142.44,3.34677026]
[1763383211523,0.2,142.47,142.46,2.65677026]
[1763383211832,18.32882769,142.47,142.46,2.65677026]
[1763383212212,0.2,142.47,142.46,2.65677026]
[1763383212830,0.2,142.47,142.46,7.10761222]
[1763383213135,0.2,142.47,142.46,7.79761222]
[1763383214848,0.2,142.47,142.46,7.10761222]
[1763383215018,0.2,142.47,142.46,7.79761222]
[1763383215732,0.2,142.47,142.46,14.81712646]
[1763383215936,0.2,142.47,142.46,21.92473868]
[1763383216137,0.2,142.51,142.49,18.12096]
[1763383216326,0.2,142.6,142.47,0.83216157]
[1763383216327,0.2,142.6,142.53,18.12096]
[1763383216536,0.2,142.6,142.59,7.10761222]
[1763383216826,0.90422156,142.6,142.54,0.69]
[1763383217032,0.90422156,142.6,142.59,7.10761222]
[1763383217235,9.24422156,142.6,142.59,7.10761222]
[1763383217416,8.54,142.6,142.59,7.10761222]
[1763383217624,18.32882769,142.6,142.59,7.10761222]
[1763383218321,0.2,142.6,142.56,0.72]
[1763383218519,9.98882769,142.6,142.59,7.10761222]
[1763383218738,10.66882769,142.6,142.59,7.10761222]
[1763383219241,0.2,142.6,142.56,0.72]
[1763383219445,0.2,142.6,142.59,7.10761222]
[1763383224924,0.2,142.6,142.57,0.72]
[1763383225120,0.2,142.6,142.59,7.10761222]
[1763383225538,0.88,142.6,142.57,0.72]
[1763383225737,0.2,142.6,142.59,7.10761222]
[1763383226458,1.58422156,142.6,142.55,10.50882769]
[1763383226758,0.2,142.6,142.59,7.10761222]
[1763383226956,0.2,142.6,142.57,0.72]
[1763383227247,0.2,142.6,142.59,7.10761222]
[1763383227663,0.2,142.6,142.59,7.82761222]
[1763383228039,0.2,142.6,142.59,10.63768633]
[1763383228341,0.2,142.6,142.59,18.97768633]
[1763383229042,0.2,142.6,142.59,25.99080085]
[1763383230334,0.68,142.66,142.59,25.99080085]
[1763383230534,10.46882769,142.66,142.65,7.10761222]
[1763383231145,0.68,142.66,142.65,7.10761222]
[1763383231437,9.78882769,142.66,142.65,7.10761222]
[1763383231635,0.68,142.68,142.65,7.10761222]
[1763383231942,10.46882769,142.68,142.67,7.10761222]
[1763383232138,9.04422156,142.69,142.67,7.10761222]
[1763383232139,8.34,142.69,142.67,7.10761222]
[1763383232340,18.83304925,142.71,142.68,7.10761222]
[1763383232660,8.34,142.71,142.7,7.10761222]
[1763383232860,8.34,142.71,142.7,2.6458066]
[1763383233065,0.68,142.72,142.7,2.6458066]
[1763383235946,8.34,142.73,142.71,2.6458066]
[1763383236143,9.02,142.73,142.7,2.6458066]
[1763383238342,9.01,142.73,142.7,2.6458066]
[1763383240581,0.67,142.72,142.69,3.3658066]
[1763383240874,0.67,142.72,142.7,2.6458066]
[1763383241037,8.34,142.73,142.7,2.6458066]
[1763383241243,9.01,142.73,142.7,2.6458066]
[1763383243470,9.01,142.73,142.71,2.6458066]
[1763383243857,9.01,142.73,142.69,0.72]
[1763383243858,0.70422156,142.74,142.72,3.3658066]
[1763383244170,9.78882769,142.78,142.73,13.229033]
[1763383244472,18.81304925,142.78,142.76,2.6458066]
[1763383244665,19.48304925,142.78,142.76,2.6458066]
[1763383244970,19.48304925,142.78,142.74,0.72]
[1763383244971,18.81304925,142.78,142.74,2.6458066]
[1763383245156,9.78882769,142.76,142.72,2.6458066]
[1763383245353,12.43463429,142.74,142.66,0.72]
[1763383245559,27.81518156,142.75,142.6,18.12096]
[1763383245560,9.78882769,142.66,142.6,18.12096]
[1763383245862,9.78882769,142.66,142.52,10.5832264]
[1763383245863,9.78882769,142.64,142.61,2.6458066]
[1763383246369,0.70422156,142.63,142.61,2.6458066]
[1763383246668,9.78882769,142.62,142.6,2.6458066]
[1763383246867,18.12882769,142.62,142.6,2.6458066]
[1763383247586,8.34,142.62,142.61,3.3658066]
[1763383247888,11.16304925,142.65,142.61,2.6458066]
[1763383248050,0.67,142.64,142.61,2.6458066]
[1763383248246,0.67,142.64,142.61,3.3658066]
[1763383248683,9.01,142.64,142.61,3.3658066]
[1763383249153,1.37422156,142.63,142.6,2.6458066]
[1763383249559,1.37422156,142.63,142.59,2.6458066]
[1763383249769,1.37422156,142.63,142.6,2.6458066]
[1763383249958,8.34,142.62,142.6,2.6458066]
[1763383250765,8.34,142.62,142.6,7.09706818]
[1763383251371,8.34,142.62,142.56,25.13543442]
[1763383251372,8.34,142.62,142.56,18.12096]
[1763383251588,0.70422156,142.61,142.59,7.09706818]
[1763383251949,9.01,142.62,142.59,7.09706818]
[1763383252153,18.12882769,142.62,142.6,7.09706818]
[1763383252458,11.16304925,142.61,142.56,18.12096]
[1763383252664,11.16304925,142.61,142.58,7.09706818]
[1763383252865,0.67,142.6,142.58,7.09706818]
[1763383253078,0.67,142.6,142.57,7.09706818]
[1763383253376,0.67,142.6,142.56,0.72]
[1763383253566,8.34,142.59,142.57,7.09706818]
[1763383253768,9.01,142.59,142.57,7.09706818]
[1763383254276,8.34,142.59,142.54,18.12096]
[1763383254475,11.16304925,142.58,142.53,7.09706818]
[1763383254665,18.26011743,142.58,142.53,7.09706818]
[1763383254862,9.78882769,142.56,142.53,7.09706818]
[1763383255067,8.34,142.55,142.53,7.09706818]
[1763383255568,8.34,142.55,142.54,7.09706818]
[1763383256287,8.34,142.55,142.53,0.72]
[1763383256470,8.34,142.55,142.53,7.09706818]
[1763383256980,8.34,142.55,142.53,10.99361216]
[1763383257165,8.34,142.55,142.54,10.99361216]
[1763383257554,9.78882769,142.54,142.52,10.99361216]
[1763383258171,11.13577373,142.6,142.53,10.99361216]
[1763383258371,9.78882769,142.57,142.56,10.99361216]
[1763383258556,10.49304925,142.57,142.55,10.99361216]
[1763383258761,8.34,142.56,142.55,10.99361216]
[1763383259955,9.78882769,142.55,142.49,18.84096]
[1763383260157,9.78882769,142.53,142.51,10.99361216]
[1763383260459,9.78882769,142.53,142.5,10.99361216]
[1763383260654,8.34,142.52,142.5,10.99361216]
[1763383261076,8.34,142.52,142.5,11.71361216]
[1763383261385,18.12882769,142.52,142.51,10.99361216]
[1763383261565,8.34,142.52,142.51,10.99361216]
[1763383261961,9.01,142.52,142.48,0.72]
[1763383262163,9.01,142.52,142.5,10.99361216]
[1763383263287,0.70422156,142.55,142.51,10.99361216]
[1763383263585,9.78882769,142.55,142.53,10.99361216]
[1763383263788,18.12882769,142.55,142.53,10.99361216]
[1763383265484,18.12882769,142.55,142.54,10.99361216]
[1763383265686,8.34,142.55,142.54,10.99361216]
[1763383265986,9.78882769,142.56,142.54,10.99361216]
[1763383266487,9.78882769,142.56,142.55,10.99361216]
[1763383267692,9.78882769,142.56,142.55,11.71361216]
[1763383268189,8.34,142.57,142.55,11.71361216]
[1763383268394,8.34,142.57,142.56,11.71361216]
[1763383268694,18.12882769,142.59,142.56,11.71361216]
[1763383268892,18.12882769,142.59,142.58,10.99361216]
[1763383269189,18.12882769,142.6,142.58,10.99361216]
[1763383269395,9.78882769,142.6,142.59,10.99361216]
[1763383270368,8.34,142.61,142.59,11.71361216]
[1763383270570,18.12882769,142.61,142.6,10.99361216]
[1763383272409,1.42422156,142.63,142.6,10.99361216]
[1763383272410,18.12882769,142.63,142.6,11.71361216]
[1763383272577,18.84882769,142.63,142.61,10.99361216]
[1763383273074,18.84882769,142.63,142.59,0.72]
[1763383273273,18.12882769,142.63,142.62,10.99361216]
[1763383273883,9.78882769,142.63,142.62,10.99361216]
[1763383274502,11.21304925,142.63,142.61,10.99361216]
[1763383274675,11.21304925,142.63,142.56,18.12096]
[1763383274676,9.78882769,142.61,142.56,18.12096]
[1763383274874,9.78882769,142.61,142.6,10.99361216]
[1763383275195,8.34,142.62,142.6,10.99361216]
[1763383275497,18.12882769,142.62,142.61,10.99361216]
[1763383275822,18.12882769,142.62,142.53,10.99361216]
[1763383275823,9.78882769,142.57,142.53,10.99361216]
[1763383276106,9.78882769,142.55,142.51,10.99361216]
[1763383276312,9.78882769,142.53,142.51,10.99361216]
[1763383276482,10.50882769,142.53,142.51,10.99361216]
[1763383277601,9.78882769,142.53,142.51,10.99361216]
[1763383277896,0.70422156,142.56,142.52,11.67361216]
[1763383278100,8.36,142.55,142.54,10.99361216]
[1763383280002,10.47882769,142.58,142.54,11.67361216]
[1763383280003,8.36,142.58,142.54,11.67361216]
[1763383280206,8.36,142.58,142.57,10.99361216]
[1763383280504,9.05,142.58,142.54,0.68]
[1763383280700,9.05,142.58,142.52,8.36]
[1763383280701,0.70422156,142.57,142.52,8.36]
[1763383280878,0.70422156,142.57,142.55,10.99361216]
[1763383281207,8.36,142.58,142.56,10.99361216]
[1763383281510,9.05,142.58,142.56,10.99361216]
[1763383281806,10.49304925,142.57,142.56,10.99361216]
[1763383282493,9.78882769,142.57,142.56,10.99361216]
[1763383283387,11.18304925,142.57,142.54,10.99361216]
[1763383283588,9.05,142.56,142.52,10.99361216]
[1763383283796,9.78882769,142.54,142.52,10.99361216]
[1763383284181,9.78882769,142.54,142.53,10.99361216]
[1763383284386,8.36,142.56,142.53,10.99361216]
[1763383284586,18.14882769,142.56,142.55,10.99361216]
[1763383284883,18.14882769,142.56,142.53,0.68]
[1763383284884,18.14882769,142.56,142.54,10.99361216]
[1763383285816,18.14882769,142.56,142.55,10.99361216]
[1763383286711,9.78882769,142.56,142.55,10.99361216]
[1763383288295,104.6,142.57,142.55,11.67361216]
[1763383288490,104.6,142.57,142.56,10.99361216]
[1763383289385,104.6,142.57,142.56,11.67361216]
[1763383289590,104.6,142.57,142.56,10.99361216]
[1763383291920,9.78882769,142.56,142.54,10.99361216]
[1763383292220,104.6,142.57,142.55,11.67361216]
[1763383292515,104.6,142.57,142.56,11.67361216]
[1763383293015,104.6,142.57,142.56,10.99361216]
[1763383294090,1.39422156,142.61,142.56,11.67361216]
[1763383294292,9.78882769,142.62,142.6,10.99361216]
[1763383294513,9.78882769,142.62,142.61,10.99361216]
[1763383295014,9.78882769,142.63,142.61,10.99361216]
[1763383296924,9.03,142.65,142.63,10.99361216]
[1763383299900,18.12882769,142.65,142.64,10.99361216]
[1763383300115,1.42422156,142.67,142.64,10.99361216]
[1763383300301,9.78882769,142.68,142.66,10.99361216]
[1763383300498,9.78882769,142.68,142.67,10.99361216]
[1763383306310,18.12096,142.66,142.63,10.99361216]
[1763383306526,9.76422156,142.65,142.63,10.99361216]
[1763383307730,9.04422156,142.65,142.63,10.99361216]
[1763383307910,0.72,142.69,142.64,11.65361216]
[1763383308111,8.36,142.7,142.67,10.99361216]
[1763383308510,8.36,142.7,142.67,0.66]
[1763383308800,8.36,142.7,142.67,11.65361216]
[1763383310216,9.08,142.7,142.67,11.65361216]
[1763383310534,11.21304925,142.69,142.66,10.99361216]
[1763383311525,9.78882769,142.69,142.67,10.99361216]
[1763383311731,9.78422156,142.7,142.67,10.99361216]
[1763383312428,10.50882769,142.69,142.67,10.99361216]
[1763383312641,9.78882769,142.69,142.67,11.65361216]
[1763383312819,9.78882769,142.69,142.67,10.99361216]
[1763383313224,9.06422156,142.7,142.68,11.65361216]
[1763383313423,8.36,142.7,142.69,10.99361216]
[1763383313614,114.36422156,142.72,142.69,10.99361216]
[1763383314163,114.36422156,142.72,142.7,10.99361216]
[1763383314313,9.04422156,142.72,142.7,10.99361216]
[1763383315031,0.72,142.71,142.69,10.99361216]
[1763383315230,0.72,142.71,142.67,0.66]
[1763383315438,9.04422156,142.72,142.69,10.99361216]
[1763383315643,9.76422156,142.72,142.69,10.99361216]
[1763383316055,9.76422156,142.72,142.7,10.99361216]
[1763383317141,9.76422156,142.72,142.69,10.99361216]
[1763383319051,9.76422156,142.72,142.69,7.08639127]
[1763383319221,10.50882769,142.71,142.66,0.66]
[1763383319542,0.70422156,142.7,142.68,7.08639127]
[1763383320326,1.42422156,142.7,142.67,0.66]
[1763383320520,1.42422156,142.7,142.67,7.74639127]
[1763383320719,1.42422156,142.7,142.67,7.08639127]
[1763383321257,0.70422156,142.7,142.67,7.08639127]
[1763383321461,10.50882769,142.69,142.64,0.66]
[1763383321753,0.70422156,142.68,142.66,7.08639127]
[1763383323665,1.42422156,142.68,142.65,7.08639127]
[1763383324028,9.76422156,142.68,142.65,7.08639127]
[1763383324829,8.34,142.68,142.67,7.08639127]
[1763383325025,0.70422156,142.69,142.67,7.74639127]
[1763383325231,104.6,142.71,142.68,7.74639127]
[1763383325430,105.30422156,142.71,142.69,7.08639127]
[1763383325659,106.02422156,142.71,142.69,7.08639127]
[1763383326355,106.02422156,142.71,142.68,0.66]
[1763383326678,18.12882769,142.7,142.67,7.78639127]
[1763383327158,18.79882769,142.7,142.67,7.78639127]
[1763383327368,19.50304925,142.7,142.68,7.08639127]
[1763383327539,8.34,142.7,142.68,7.08639127]
[1763383327735,8.34,142.7,142.68,7.78639127]
[1763383328069,8.34,142.7,142.69,7.08639127]
[1763383328278,104.6,142.71,142.69,7.78639127]
[1763383328433,104.6,142.71,142.7,7.08639127]
[1763383330968,0.70422156,142.73,142.7,7.78639127]
[1763383331283,105.47,142.75,142.69,7.0081259]
[1763383331284,114.51422156,142.75,142.72,7.08639127]
[1763383331578,114.51422156,142.75,142.71,7.78639127]
[1763383331752,0.67,142.74,142.71,7.08639127]
[1763383332175,113.84422156,142.75,142.71,7.78639127]
[1763383332378,123.63304925,142.75,142.74,7.08639127]
[1763383332561,113.14,142.75,142.74,7.08639127]
[1763383332761,104.8,142.75,142.74,7.08639127]
[1763383332967,0.2,142.75,142.74,7.08639127]
[1763383334050,0.2,142.75,142.74,7.78639127]
[1763383334548,0.2,142.75,142.74,7.08639127]
[1763383334778,0.2,142.75,142.74,2.64361393]
[1763383335972,0.2,142.75,142.74,3.34361393]
[1763383338284,0.2,142.75,142.74,2.64361393]
[1763383338466,0.2,142.75,142.72,0.72]
[1763383338663,0.2,142.75,142.74,2.64361393]
[1763383338866,0.90422156,142.75,142.74,2.64361393]
[1763383339079,11.36304925,142.75,142.69,0.72]
[1763383339285,0.67,142.74,142.71,2.64361393]
[1763383341091,0.67,142.74,142.72,2.64361393]
[1763383342584,0.67,142.74,142.73,2.64361393]
[1763383343160,0.90422156,142.75,142.73,2.64361393]
[1763383343379,0.90422156,142.75,142.74,2.64361393]
[1763383343583,1.57422156,142.75,142.74,2.64361393]
[1763383344486,0.90422156,142.75,142.74,2.64361393]
[1763383344695,0.2,142.75,142.74,3.36361393]
[1763383346572,0.70422156,142.79,142.74,9.64935864]
[1763383346772,0.2,142.8,142.78,2.64361393]
[1763383346986,0.2,142.8,142.79,2.64361393]
[1763383347800,0.2,142.8,142.79,3.36361393]
[1763383348982,0.2,142.8,142.79,6.00722786]
[1763383350118,1.57422156,142.86,142.79,13.0105194]
[1763383350285,1.57422156,142.86,142.84,2.64361393]
[1763383352174,0.90422156,142.86,142.84,2.64361393]
[1763383352906,0.90422156,142.86,142.84,3.36361393]
[1763383354303,0.2,142.86,142.84,3.36361393]
[1763383354602,0.90422156,142.86,142.84,2.64361393]
[1763383355699,9.21,142.85,142.8,0.72]
[1763383355999,0.70422156,142.84,142.81,2.64361393]
[1763383356297,1.37422156,142.84,142.79,2.64361393]
[1763383356497,1.37422156,142.84,142.8,2.64361393]
[1763383356801,0.7,142.83,142.8,2.64361393]
[1763383356979,0.70422156,142.82,142.8,2.64361393]
[1763383357377,0.7,142.83,142.81,2.64361393]
[1763383357598,0.70422156,142.82,142.81,2.64361393]
[1763383357810,0.70422156,142.82,142.8,3.33361393]
[1763383357979,1.40422156,142.82,142.8,2.64361393]
[1763383358179,1.40422156,142.82,142.78,10.98361393]
[1763383358381,0.7,142.81,142.78,2.64361393]
[1763383358808,0.7,142.81,142.78,3.33361393]
[1763383359803,0.7,142.81,142.78,2.64361393]
[1763383360000,0.7,142.81,142.78,3.33361393]
[1763383360208,0.7,142.81,142.78,2.64361393]
[1763383360408,0.70422156,142.8,142.78,2.64361393]
[1763383360882,0.7,142.8,142.78,2.64361393]
[1763383361083,0.7,142.8,142.77,2.64361393]
[1763383361304,8.34,142.79,142.75,2.64361393]
[1763383361481,0.70422156,142.78,142.75,2.64361393]
[1763383361796,1.40422156,142.78,142.75,2.64361393]
[1763383362001,1.40422156,142.78,142.74,2.64361393]
[1763383362189,0.7,142.77,142.74,2.64361393]
[1763383362782,9.04422156,142.76,142.72,2.64361393]
[1763383363005,9.04422156,142.76,142.71,3.33361393]
[1763383363189,0.7,142.75,142.71,3.33361393]
[1763383363390,0.7,142.75,142.72,2.64361393]
[1763383363704,9.04422156,142.76,142.73,2.64361393]
[1763383364007,9.74422156,142.76,142.73,2.64361393]
[1763383364588,9.74422156,142.76,142.72,3.33361393]
[1763383365187,0.7,142.75,142.72,0.69]
[1763383365392,9.04422156,142.76,142.72,3.33361393]
[1763383365393,9.74422156,142.76,142.72,3.33361393]
[1763383366306,9.74422156,142.76,142.72,0.69]
[1763383366489,9.04422156,142.76,142.73,2.64361393]
[1763383366701,107.24361393,142.8,142.75,2.64361393]
[1763383366702,0.70422156,142.79,142.75,2.64361393]
[1763383366999,4.04783549,142.83,142.77,2.64361393]
[1763383367196,18.82882769,142.82,142.78,2.64361393]
[1763383367519,0.70422156,142.81,142.78,2.64361393]
[1763383367817,1.40422156,142.81,142.77,2.64361393]
[1763383367982,1.40422156,142.81,142.78,2.64361393]
[1763383368182,0.70422156,142.84,142.8,5.28722786]
[1763383368388,0.2,142.85,142.83,2.64361393]
[1763383368619,0.2,142.85,142.84,2.64361393]
[1763383368786,0.2,142.85,142.84,7.06952585]
[1763383368985,0.2,142.85,142.84,7.75952585]
[1763383372216,0.2,142.85,142.84,7.06952585]
[1763383372717,0.2,142.85,142.84,7.75952585]
[1763383373286,0.2,142.85,142.84,0.69]
[1763383373485,0.2,142.85,142.84,7.75952585]
[1763383373895,0.2,142.85,142.84,14.76036595]
[1763383380899,0.2,142.85,142.84,11.62882673]
[1763383381509,10.93882673,142.93,142.84,11.62882673]
[1763383381713,10.93882673,142.93,142.87,10.93882673]
[1763383381912,69.51399062,142.92,142.88,10.93882673]
[1763383382397,69.51399062,142.92,142.84,7.6908401]
[1763383382624,69.51399062,142.92,142.87,10.93882673]
[1763383385237,90.38380661,142.91,142.8,11.62882673]
[1763383385421,9.78882769,142.89,142.84,10.93882673]
[1763383385616,9.78882769,142.89,142.81,8.32]
[1763383385617,9.78882769,142.89,142.85,10.93882673]
[1763383386104,9.78882769,142.89,142.81,8.32]
[1763383386433,9.78882769,142.89,142.85,10.93882673]
[1763383386934,9.78882769,142.89,142.72,8.52129006]
[1763383386935,9.78882769,142.85,142.72,8.52129006]
[1763383387138,8.32,142.86,142.83,10.93882673]
[1763383387324,9.78882769,142.87,142.83,10.93882673]
[1763383387629,18.10882769,142.87,142.83,10.93882673]
[1763383388910,18.10882769,142.87,142.83,4.12559098]
[1763383390932,22.84441867,142.87,142.81,4.12559098]
[1763383393140,69.51399062,142.86,142.81,4.12559098]
[1763383395339,69.51399062,142.86,142.82,4.12559098]
[1763383395721,69.51399062,142.86,142.83,4.12559098]
[1763383396238,69.51399062,142.86,142.79,8.32]
[1763383396460,69.51399062,142.86,142.81,4.12559098]
[1763383397430,69.51399062,142.86,142.79,8.32]
[1763383397630,69.51399062,142.86,142.82,4.12559098]
[1763383398718,69.51399062,142.86,142.81,4.12559098]
[1763383398918,69.51399062,142.86,142.79,9.0]
[1763383399117,69.51399062,142.86,142.81,4.12559098]
[1763383399629,69.51399062,142.86,142.81,4.80559098]
[1763383399835,70.12399062,142.86,142.81,4.12559098]
[1763383401444,22.23441867,142.87,142.76,0.68]
[1763383401445,84.03840929,142.85,142.76,0.68]
[1763383401650,9.78882769,142.83,142.78,4.12559098]
[1763383401821,13.91441867,142.83,142.77,4.12559098]
[1763383402025,4.73559098,142.82,142.76,4.12559098]
[1763383402230,8.32,142.81,142.76,4.12559098]
[1763383402439,8.93,142.81,142.76,4.12559098]
[1763383402620,8.93,142.81,142.77,4.12559098]
[1763383402825,8.93,142.81,142.76,4.12559098]
[1763383403432,8.32,142.81,142.77,4.12559098]